[Event "Titled Tuesday Blitz August 09 Early 2022"]
[White "Smietanska, Wiktoria"]
[Black "Jorquera, Marcelo"]
[WhiteFideId "21869359"]
[BlackFideId "3401197"]
[WhiteElo "1883"]
[BlackElo "2136"]
[Result "1-0"]
[Round "09"]
[TimeControl "180+1"]
[Date "2022.08.09"]
[WhiteClock "0:00:02"]
[BlackClock "0:00:01"]

1. c4 {[%clk 0:02:59]}  Nf6 {[%clk 0:02:59]} 2. Nc3 {[%clk 0:02:51]}  g6 {[%clk 0:02:59]} 3. g3 {[%clk 0:02:48]}  Bg7 {[%clk 0:02:59]} 4. Bg2 {[%clk 0:02:47]}  O-O {[%clk 0:02:59]} 5. e4 {[%clk 0:02:47]}  d6 {[%clk 0:03:00]} 6. Nge2 {[%clk 0:02:47]}  c5 {[%clk 0:02:53]} 7. O-O {[%clk 0:02:47]}  Nc6 {[%clk 0:02:52]} 8. d3 {[%clk 0:02:47]}  Bd7 {[%clk 0:02:49]} 9. h3 {[%clk 0:02:43]}  Nd4 {[%clk 0:02:42]} 10. Be3 {[%clk 0:02:34]}  Ne8 {[%clk 0:02:41]} 11. f4 {[%clk 0:02:30]}  f5 {[%clk 0:02:36]} 12. Rb1 {[%clk 0:02:29]}  a5 {[%clk 0:02:24]} 13. a3 {[%clk 0:02:28]}  Bc6 {[%clk 0:02:07]} 14. b4 {[%clk 0:02:18]}  axb4 {[%clk 0:01:55]} 15. axb4 {[%clk 0:02:19]}  b6 {[%clk 0:01:55]} 16. bxc5 {[%clk 0:02:03]}  bxc5 {[%clk 0:01:53]} 17. Qd2 {[%clk 0:01:53]}  Nc7 {[%clk 0:01:43]} 18. Nd5 {[%clk 0:01:49]}  Nxe2+ {[%clk 0:01:35]} 19. Qxe2 {[%clk 0:01:47]}  Ne6 {[%clk 0:01:33]} 20. exf5 {[%clk 0:01:46]}  Nd4 {[%clk 0:01:33]} 21. Bxd4 {[%clk 0:01:42]}  Bxd4+ {[%clk 0:01:32]} 22. Kh1 {[%clk 0:01:43]}  Rf7 {[%clk 0:00:58]} 23. Qe6 {[%clk 0:01:38]}  Kg7 {[%clk 0:00:48]} 24. fxg6 {[%clk 0:01:31]}  hxg6 {[%clk 0:00:49]} 25. Rb6 {[%clk 0:01:23]}  Bd7 {[%clk 0:00:22]} 26. Qe4 {[%clk 0:01:15]}  Ra2 {[%clk 0:00:19]} 27. Rfb1 {[%clk 0:01:10]}  Bf5 {[%clk 0:00:17]} 28. Qf3 {[%clk 0:01:06]}  e6 {[%clk 0:00:12]} 29. Ne3 {[%clk 0:01:03]}  e5 {[%clk 0:00:11]} 30. Nxf5+ {[%clk 0:01:00]}  Rxf5 {[%clk 0:00:11]} 31. Rb7+ {[%clk 0:00:59]}  Kh6 {[%clk 0:00:09]} 32. Rb8 {[%clk 0:00:45]}  Qf6 {[%clk 0:00:08]} 33. Qb7 {[%clk 0:00:09]}  exf4 {[%clk 0:00:06]} 34. g4 {[%clk 0:00:09]}  Re5 {[%clk 0:00:05]} 35. Qc7 {[%clk 0:00:06]}  Rxg2 {[%clk 0:00:03]} 36. R8b7 {[%clk 0:00:04]}  Ree2 {[%clk 0:00:01]} 37. Qh7+ {[%clk 0:00:04]}  Kg5 {[%clk 0:00:01]} 38. Rg7 {[%clk 0:00:02]} 1-0


[Site "https://www.chess.com"]

[Event "Titled Tuesday Blitz August 09 Early 2022"]
[White "Srihari L R"]
[Black "Maiorov, Nikita"]
[WhiteFideId "46617116"]
[BlackFideId "13501720"]
[WhiteElo "2170"]
[BlackElo "2409"]
[Result "1-0"]
[Round "09"]
[TimeControl "180+1"]
[Date "2022.08.09"]
[WhiteClock "0:00:21"]
[BlackClock "0:00:13"]

1. c4 {[%clk 0:02:47]}  e6 {[%clk 0:02:55]} 2. Nc3 {[%clk 0:02:46]}  d5 {[%clk 0:02:54]} 3. d4 {[%clk 0:02:34]}  Nf6 {[%clk 0:02:54]} 4. Bg5 {[%clk 0:02:26]}  Be7 {[%clk 0:02:53]} 5. e3 {[%clk 0:02:26]}  O-O {[%clk 0:02:53]} 6. Qc2 {[%clk 0:02:26]}  Nbd7 {[%clk 0:02:52]} 7. cxd5 {[%clk 0:02:26]}  exd5 {[%clk 0:02:52]} 8. Bd3 {[%clk 0:02:26]}  c6 {[%clk 0:02:51]} 9. Nge2 {[%clk 0:02:26]}  Re8 {[%clk 0:02:52]} 10. O-O {[%clk 0:02:26]}  Nf8 {[%clk 0:02:52]} 11. f3 {[%clk 0:02:25]}  Be6 {[%clk 0:02:52]} 12. Rae1 {[%clk 0:02:24]}  Rc8 {[%clk 0:02:52]} 13. e4 {[%clk 0:02:22]}  dxe4 {[%clk 0:02:51]} 14. fxe4 {[%clk 0:02:21]}  Ng4 {[%clk 0:02:50]} 15. Bxe7 {[%clk 0:02:16]}  Rxe7 {[%clk 0:02:42]} 16. Qd2 {[%clk 0:02:08]}  c5 {[%clk 0:02:38]} 17. d5 {[%clk 0:02:01]}  Bd7 {[%clk 0:02:38]} 18. d6 {[%clk 0:02:01]}  Re6 {[%clk 0:02:31]} 19. Bc4 {[%clk 0:02:01]}  Ne5 {[%clk 0:02:23]} 20. Bxe6 {[%clk 0:01:59]}  Bxe6 {[%clk 0:02:23]} 21. Nf4 {[%clk 0:01:54]}  Bc4 {[%clk 0:02:20]} 22. Rf2 {[%clk 0:01:52]}  Rc6 {[%clk 0:02:20]} 23. Rd1 {[%clk 0:01:51]}  Ba6 {[%clk 0:02:16]} 24. b3 {[%clk 0:01:49]}  Kh8 {[%clk 0:02:08]} 25. h3 {[%clk 0:01:48]}  b5 {[%clk 0:01:54]} 26. Qd5 {[%clk 0:01:47]}  Nfd7 {[%clk 0:01:50]} 27. a4 {[%clk 0:01:36]}  bxa4 {[%clk 0:01:47]} 28. Nxa4 {[%clk 0:01:32]}  h6 {[%clk 0:01:34]} 29. Nb2 {[%clk 0:01:22]}  Qg5 {[%clk 0:01:12]} 30. Nbd3 {[%clk 0:01:14]}  Nxd3 {[%clk 0:01:00]} 31. Rxd3 {[%clk 0:01:03]}  Qxd5 {[%clk 0:00:41]} 32. Rxd5 {[%clk 0:01:01]}  Rb6 {[%clk 0:00:41]} 33. Nd3 {[%clk 0:00:54]}  Bb7 {[%clk 0:00:29]} 34. Rxf7 {[%clk 0:00:36]}  Bxd5 {[%clk 0:00:29]} 35. Rxd7 {[%clk 0:00:36]}  Bxe4 {[%clk 0:00:22]} 36. Nxc5 {[%clk 0:00:30]}  Bf5 {[%clk 0:00:20]} 37. Rd8+ {[%clk 0:00:30]}  Kh7 {[%clk 0:00:20]} 38. d7 {[%clk 0:00:30]}  Rb5 {[%clk 0:00:17]} 39. Rh8+ {[%clk 0:00:28]}  Kxh8 {[%clk 0:00:16]} 40. d8=Q+ {[%clk 0:00:29]}  Kh7 {[%clk 0:00:17]} 41. Qd5 {[%clk 0:00:26]}  Bg6 {[%clk 0:00:16]} 42. Qc4 {[%clk 0:00:25]}  Rb6 {[%clk 0:00:16]} 43. Kh2 {[%clk 0:00:25]}  Rc6 {[%clk 0:00:16]} 44. Qb5 {[%clk 0:00:24]}  Rb6 {[%clk 0:00:16]} 45. Qa5 {[%clk 0:00:22]}  Rd6 {[%clk 0:00:13]} 46. Qxa7 {[%clk 0:00:21]} 1-0


[Site "https://www.chess.com"]

[Event "Titled Tuesday Blitz August 09 Early 2022"]
[White "Szpar, Milosz"]
[Black "Omelja, Artem"]
[WhiteFideId "1184989"]
[BlackFideId "14119846"]
[WhiteElo "2422"]
[BlackElo "2382"]
[Result "1-0"]
[Round "09"]
[TimeControl "180+1"]
[Date "2022.08.09"]
[WhiteClock "0:01:36"]
[BlackClock "0:00:02"]

1. e4 {[%clk 0:03:00]}  c5 {[%clk 0:02:59]} 2. Nf3 {[%clk 0:02:57]}  e6 {[%clk 0:02:58]} 3. d4 {[%clk 0:02:58]}  cxd4 {[%clk 0:02:59]} 4. Nxd4 {[%clk 0:02:59]}  a6 {[%clk 0:03:00]} 5. Nc3 {[%clk 0:02:56]}  b5 {[%clk 0:02:59]} 6. Bd3 {[%clk 0:02:56]}  Bb7 {[%clk 0:03:00]} 7. O-O {[%clk 0:02:56]}  Nc6 {[%clk 0:03:00]} 8. Nxc6 {[%clk 0:02:53]}  Bxc6 {[%clk 0:03:01]} 9. f4 {[%clk 0:02:54]}  Bc5+ {[%clk 0:02:51]} 10. Kh1 {[%clk 0:02:54]}  Nf6 {[%clk 0:02:52]} 11. e5 {[%clk 0:02:52]}  Nd5 {[%clk 0:02:43]} 12. Ne4 {[%clk 0:02:51]}  Be7 {[%clk 0:02:41]} 13. f5 {[%clk 0:02:47]}  Qc7 {[%clk 0:02:24]} 14. f6 {[%clk 0:02:31]}  gxf6 {[%clk 0:02:15]} 15. exf6 {[%clk 0:02:31]}  Bf8 {[%clk 0:02:03]} 16. Qh5 {[%clk 0:02:31]}  Nb4 {[%clk 0:01:18]} 17. Ng5 {[%clk 0:02:22]}  d6 {[%clk 0:00:34]} 18. Nxe6 {[%clk 0:02:17]}  Qb7 {[%clk 0:00:34]} 19. Ng7+ {[%clk 0:01:54]}  Kd8 {[%clk 0:00:21]} 20. Rf2 {[%clk 0:01:50]}  Nxd3 {[%clk 0:00:18]} 21. cxd3 {[%clk 0:01:50]}  d5 {[%clk 0:00:14]} 22. Bf4 {[%clk 0:01:49]}  Bc5 {[%clk 0:00:13]} 23. Re2 {[%clk 0:01:48]}  Bd4 {[%clk 0:00:08]} 24. Be5 {[%clk 0:01:46]}  Bc5 {[%clk 0:00:07]} 25. Rae1 {[%clk 0:01:46]}  Rc8 {[%clk 0:00:05]} 26. Bg3 {[%clk 0:01:46]}  Bb4 {[%clk 0:00:02]} 27. Rf1 {[%clk 0:01:37]}  d4 {[%clk 0:00:02]} 28. Qe5 {[%clk 0:01:36]} 1-0


[Site "https://www.chess.com"]

[Event "Titled Tuesday Blitz August 09 Early 2022"]
[White "Veiga, Jose Francisco R P Neves"]
[Black "Vlassov, Nikolai"]
[WhiteFideId "1930087"]
[BlackFideId "4103360"]
[WhiteElo "2273"]
[BlackElo "2324"]
[Result "1/2-1/2"]
[Round "09"]
[TimeControl "180+1"]
[Date "2022.08.09"]
[WhiteClock "0:00:12"]
[BlackClock "0:00:24"]

1. d4 {[%clk 0:03:00]}  Nf6 {[%clk 0:02:59]} 2. Nf3 {[%clk 0:02:59]}  e6 {[%clk 0:02:59]} 3. Bf4 {[%clk 0:02:58]}  c5 {[%clk 0:02:59]} 4. e3 {[%clk 0:02:58]}  b6 {[%clk 0:03:00]} 5. Nbd2 {[%clk 0:02:56]}  Bb7 {[%clk 0:03:00]} 6. Bd3 {[%clk 0:02:50]}  Be7 {[%clk 0:02:57]} 7. c3 {[%clk 0:02:50]}  h6 {[%clk 0:02:56]} 8. h3 {[%clk 0:02:50]}  d6 {[%clk 0:02:56]} 9. O-O {[%clk 0:02:49]}  g5 {[%clk 0:02:55]} 10. Bh2 {[%clk 0:02:48]}  g4 {[%clk 0:02:56]} 11. hxg4 {[%clk 0:02:47]}  Nxg4 {[%clk 0:02:56]} 12. Bg3 {[%clk 0:02:47]}  h5 {[%clk 0:02:56]} 13. e4 {[%clk 0:02:35]}  Nd7 {[%clk 0:02:52]} 14. a4 {[%clk 0:02:34]}  a6 {[%clk 0:02:39]} 15. Nc4 {[%clk 0:02:32]}  Nf8 {[%clk 0:02:34]} 16. Qb3 {[%clk 0:02:21]}  h4 {[%clk 0:02:26]} 17. Bf4 {[%clk 0:02:20]}  Ng6 {[%clk 0:02:26]} 18. Bd2 {[%clk 0:02:06]}  h3 {[%clk 0:02:26]} 19. Qxb6 {[%clk 0:02:03]}  hxg2 {[%clk 0:02:22]} 20. Kxg2 {[%clk 0:02:01]}  Rb8 {[%clk 0:02:10]} 21. Qxd8+ {[%clk 0:01:59]}  Kxd8 {[%clk 0:02:08]} 22. Rh1 {[%clk 0:01:59]}  Rg8 {[%clk 0:02:08]} 23. Rh7 {[%clk 0:01:45]}  d5 {[%clk 0:02:02]} 24. exd5 {[%clk 0:01:43]}  Bxd5 {[%clk 0:02:02]} 25. Ne3 {[%clk 0:01:42]}  Nxe3+ {[%clk 0:01:59]} 26. fxe3 {[%clk 0:01:42]}  Nf8+ {[%clk 0:01:59]} 27. Kf2 {[%clk 0:01:41]}  Nxh7 {[%clk 0:01:59]} 28. Bxh7 {[%clk 0:01:42]}  Rh8 {[%clk 0:01:59]} 29. Bd3 {[%clk 0:01:40]}  Rxb2 {[%clk 0:01:59]} 30. e4 {[%clk 0:01:40]}  Bb7 {[%clk 0:01:51]} 31. Rb1 {[%clk 0:01:38]}  Rxb1 {[%clk 0:01:49]} 32. Bxb1 {[%clk 0:01:39]}  cxd4 {[%clk 0:01:49]} 33. cxd4 {[%clk 0:01:39]}  f6 {[%clk 0:01:45]} 34. Bd3 {[%clk 0:01:38]}  Kd7 {[%clk 0:01:44]} 35. Ke3 {[%clk 0:01:31]}  Rh1 {[%clk 0:01:39]} 36. Be1 {[%clk 0:01:26]}  Bf8 {[%clk 0:01:33]} 37. Ke2 {[%clk 0:01:22]}  Bc6 {[%clk 0:01:23]} 38. Bxa6 {[%clk 0:01:19]}  Bxe4 {[%clk 0:01:21]} 39. Bb5+ {[%clk 0:01:18]}  Kc8 {[%clk 0:01:16]} 40. Bg3 {[%clk 0:01:14]}  Bh6 {[%clk 0:01:08]} 41. Nd2 {[%clk 0:01:09]}  Bd5 {[%clk 0:01:03]} 42. Nc4 {[%clk 0:01:08]}  Ra1 {[%clk 0:01:00]} 43. Nd6+ {[%clk 0:01:08]}  Kc7 {[%clk 0:00:47]} 44. Nf7+ {[%clk 0:01:07]}  Kb6 {[%clk 0:00:47]} 45. Nxh6 {[%clk 0:01:07]}  Bc6 {[%clk 0:00:45]} 46. Ng4 {[%clk 0:00:37]}  Ra3 {[%clk 0:00:30]} 47. Bxc6 {[%clk 0:00:24]}  Kxc6 {[%clk 0:00:24]} 48. Bf2 {[%clk 0:00:21]}  f5 {[%clk 0:00:22]} 49. Ne3 {[%clk 0:00:20]}  Rxa4 {[%clk 0:00:21]} 50. Kd3 {[%clk 0:00:20]}  Ra3+ {[%clk 0:00:19]} 51. Ke2 {[%clk 0:00:20]}  f4 {[%clk 0:00:19]} 52. Nc4 {[%clk 0:00:19]}  Rc3 {[%clk 0:00:18]} 53. Ne5+ {[%clk 0:00:14]}  Kd5 {[%clk 0:00:18]} 54. Nd3 {[%clk 0:00:14]}  Ke4 {[%clk 0:00:17]} 55. Nc5+ {[%clk 0:00:14]}  Kf5 {[%clk 0:00:17]} 56. Nd3 {[%clk 0:00:14]}  Rc2+ {[%clk 0:00:17]} 57. Kf3 {[%clk 0:00:14]}  Rc3 {[%clk 0:00:18]} 58. Ke2 {[%clk 0:00:14]}  Ra3 {[%clk 0:00:18]} 59. Be1 {[%clk 0:00:14]}  Ke4 {[%clk 0:00:17]} 60. Nf2+ {[%clk 0:00:14]}  Kxd4 {[%clk 0:00:17]} 61. Bd2 {[%clk 0:00:14]}  Ra2 {[%clk 0:00:17]} 62. Nd3 {[%clk 0:00:10]}  e5 {[%clk 0:00:17]} 63. Nb4 {[%clk 0:00:10]}  e4 {[%clk 0:00:17]} 64. Nxa2 {[%clk 0:00:10]}  e3 {[%clk 0:00:15]} 65. Be1 {[%clk 0:00:10]}  Ke4 {[%clk 0:00:15]} 66. Nc3+ {[%clk 0:00:08]}  Kd4 {[%clk 0:00:15]} 67. Kf3 {[%clk 0:00:09]}  Ke5 {[%clk 0:00:12]} 68. Ne2 {[%clk 0:00:10]}  Kf5 {[%clk 0:00:11]} 69. Nxf4 {[%clk 0:00:11]}  e2 {[%clk 0:00:12]} 70. Ke3 {[%clk 0:00:12]}  Kg4 {[%clk 0:00:12]} 71. Nxe2 {[%clk 0:00:13]}  Kh3 {[%clk 0:00:12]} 72. Kf3 {[%clk 0:00:13]}  Kh2 {[%clk 0:00:13]} 73. Bg3+ {[%clk 0:00:13]}  Kh1 {[%clk 0:00:13]} 74. Bf2 {[%clk 0:00:12]}  Kh2 {[%clk 0:00:13]} 75. Be3 {[%clk 0:00:13]}  Kh1 {[%clk 0:00:13]} 76. Ng3+ {[%clk 0:00:13]}  Kh2 {[%clk 0:00:14]} 77. Bd4 {[%clk 0:00:13]}  Kh3 {[%clk 0:00:14]} 78. Bg1 {[%clk 0:00:13]}  Kh4 {[%clk 0:00:14]} 79. Ne4 {[%clk 0:00:14]}  Kh5 {[%clk 0:00:14]} 80. Kf4 {[%clk 0:00:13]}  Kg6 {[%clk 0:00:15]} 81. Bc5 {[%clk 0:00:10]}  Kf7 {[%clk 0:00:15]} 82. Kf5 {[%clk 0:00:10]}  Ke8 {[%clk 0:00:16]} 83. Ke6 {[%clk 0:00:11]}  Kd8 {[%clk 0:00:16]} 84. Bb6+ {[%clk 0:00:09]}  Kc8 {[%clk 0:00:17]} 85. Nc5 {[%clk 0:00:10]}  Kb8 {[%clk 0:00:17]} 86. Kd6 {[%clk 0:00:10]}  Ka8 {[%clk 0:00:17]} 87. Kc6 {[%clk 0:00:11]}  Kb8 {[%clk 0:00:18]} 88. Nb7 {[%clk 0:00:10]}  Ka8 {[%clk 0:00:18]} 89. Bc5 {[%clk 0:00:10]}  Kb8 {[%clk 0:00:19]} 90. Na5 {[%clk 0:00:11]}  Ka8 {[%clk 0:00:19]} 91. Nc4 {[%clk 0:00:12]}  Kb8 {[%clk 0:00:20]} 92. Nd6 {[%clk 0:00:11]}  Ka8 {[%clk 0:00:20]} 93. Nb5 {[%clk 0:00:12]}  Kb8 {[%clk 0:00:20]} 94. Nc7 {[%clk 0:00:13]}  Kc8 {[%clk 0:00:21]} 95. Ba7 {[%clk 0:00:14]}  Kd8 {[%clk 0:00:21]} 96. Nd5 {[%clk 0:00:14]}  Ke8 {[%clk 0:00:22]} 97. Kd6 {[%clk 0:00:14]}  Kf7 {[%clk 0:00:22]} 98. Ke5 {[%clk 0:00:09]}  Kg6 {[%clk 0:00:22]} 99. Ne7+ {[%clk 0:00:10]}  Kg5 {[%clk 0:00:22]} 100. Be3+ {[%clk 0:00:07]}  Kg4 {[%clk 0:00:22]} 101. Ke4 {[%clk 0:00:07]}  Kh3 {[%clk 0:00:22]} 102. Nf5 {[%clk 0:00:08]}  Kg2 {[%clk 0:00:23]} 103. Nd4 {[%clk 0:00:08]}  Kh1 {[%clk 0:00:21]} 104. Kf3 {[%clk 0:00:08]}  Kh2 {[%clk 0:00:21]} 105. Ne2 {[%clk 0:00:09]}  Kh1 {[%clk 0:00:21]} 106. Ng3+ {[%clk 0:00:10]}  Kh2 {[%clk 0:00:22]} 107. Bd4 {[%clk 0:00:11]}  Kh3 {[%clk 0:00:22]} 108. Bg1 {[%clk 0:00:12]}  Kh4 {[%clk 0:00:22]} 109. Ne4 {[%clk 0:00:13]}  Kh5 {[%clk 0:00:22]} 110. Kf4 {[%clk 0:00:13]}  Kg6 {[%clk 0:00:23]} 111. Ng5 {[%clk 0:00:14]}  Kf6 {[%clk 0:00:23]} 112. Bc5 {[%clk 0:00:14]}  Kg6 {[%clk 0:00:22]} 113. Bd4 {[%clk 0:00:14]}  Kh5 {[%clk 0:00:21]} 114. Kf5 {[%clk 0:00:13]}  Kh4 {[%clk 0:00:22]} 115. Bf2+ {[%clk 0:00:14]}  Kh5 {[%clk 0:00:22]} 116. Ne6 {[%clk 0:00:13]}  Kh6 {[%clk 0:00:22]} 117. Be3+ {[%clk 0:00:12]}  Kh5 {[%clk 0:00:23]} 118. Bf2 {[%clk 0:00:12]}  Kh6 {[%clk 0:00:23]} 119. Bg3 {[%clk 0:00:11]}  Kh5 {[%clk 0:00:23]} 120. Ng7+ {[%clk 0:00:12]}  Kh6 {[%clk 0:00:24]} 121. Kf6 {[%clk 0:00:12]} 1/2-1/2


[Site "https://www.chess.com"]

[Event "Titled Tuesday Blitz August 09 Early 2022"]
[White "Von Buelow, Georg"]
[Black "Palencia Morales, Wilson Guillermo"]
[WhiteFideId "4620658"]
[BlackFideId "4401859"]
[WhiteElo "1976"]
[BlackElo "2098"]
[Result "0-1"]
[Round "09"]
[TimeControl "180+1"]
[Date "2022.08.09"]
[WhiteClock "0:00:51"]
[BlackClock "0:02:22"]

1. e4 {[%clk 0:02:59]}  c5 {[%clk 0:02:58]} 2. Nf3 {[%clk 0:02:59]}  d6 {[%clk 0:02:58]} 3. d4 {[%clk 0:02:59]}  cxd4 {[%clk 0:02:59]} 4. Nxd4 {[%clk 0:02:59]}  Nf6 {[%clk 0:02:59]} 5. Nc3 {[%clk 0:03:00]}  g6 {[%clk 0:03:00]} 6. Be3 {[%clk 0:03:00]}  Bg7 {[%clk 0:03:01]} 7. f3 {[%clk 0:03:01]}  O-O {[%clk 0:03:01]} 8. Qd2 {[%clk 0:03:01]}  Nc6 {[%clk 0:03:01]} 9. O-O-O {[%clk 0:03:02]}  Nxd4 {[%clk 0:02:53]} 10. Bxd4 {[%clk 0:03:01]}  Be6 {[%clk 0:02:54]} 11. Kb1 {[%clk 0:03:01]}  Qc7 {[%clk 0:02:53]} 12. h4 {[%clk 0:03:01]}  Rfc8 {[%clk 0:02:53]} 13. h5 {[%clk 0:03:02]}  Qa5 {[%clk 0:02:52]} 14. hxg6 {[%clk 0:03:02]}  fxg6 {[%clk 0:02:52]} 15. a3 {[%clk 0:02:14]}  Bf7 {[%clk 0:02:51]} 16. g4 {[%clk 0:01:53]}  Rab8 {[%clk 0:02:46]} 17. g5 {[%clk 0:01:49]}  Nh5 {[%clk 0:02:46]} 18. Bxg7 {[%clk 0:01:48]}  Kxg7 {[%clk 0:02:47]} 19. Qh2 {[%clk 0:01:46]}  Rxc3 {[%clk 0:02:37]} 20. bxc3 {[%clk 0:01:34]}  Qxa3 {[%clk 0:02:23]} 21. c4 {[%clk 0:00:51]}  b5 {[%clk 0:02:22]} 22. c5 {[%clk 0:00:51]} 0-1


[Site "https://www.chess.com"]

[Event "Titled Tuesday Blitz August 09 Early 2022"]
[White "Zamorano, Jorge"]
[Black "Jeet, Jain"]
[WhiteFideId "173770"]
[BlackFideId "5073022"]
[WhiteElo "2331"]
[BlackElo "2055"]
[Result "0-1"]
[Round "09"]
[TimeControl "180+1"]
[Date "2022.08.09"]
[WhiteClock "0:00:03"]
[BlackClock "0:00:16"]

1. e4 {[%clk 0:03:00]}  d5 {[%clk 0:02:56]} 2. exd5 {[%clk 0:02:52]}  Nf6 {[%clk 0:02:55]} 3. d4 {[%clk 0:02:32]}  Bg4 {[%clk 0:02:52]} 4. Be2 {[%clk 0:02:30]}  Bxe2 {[%clk 0:02:51]} 5. Qxe2 {[%clk 0:02:31]}  Qxd5 {[%clk 0:02:46]} 6. Nf3 {[%clk 0:02:30]}  Nc6 {[%clk 0:02:44]} 7. c4 {[%clk 0:01:55]}  Qf5 {[%clk 0:02:44]} 8. Nc3 {[%clk 0:01:37]}  e6 {[%clk 0:02:41]} 9. d5 {[%clk 0:01:25]}  Nb4 {[%clk 0:02:39]} 10. O-O {[%clk 0:01:25]}  O-O-O {[%clk 0:02:33]} 11. Ng5 {[%clk 0:00:46]}  exd5 {[%clk 0:02:08]} 12. Nxf7 {[%clk 0:00:44]}  Re8 {[%clk 0:02:08]} 13. Qd1 {[%clk 0:00:31]}  Rg8 {[%clk 0:01:59]} 14. cxd5 {[%clk 0:00:22]}  Nfxd5 {[%clk 0:01:53]} 15. Nxd5 {[%clk 0:00:16]}  Nxd5 {[%clk 0:01:54]} 16. Ng5 {[%clk 0:00:16]}  Bd6 {[%clk 0:01:50]} 17. Qh5 {[%clk 0:00:08]}  Kb8 {[%clk 0:01:42]} 18. Qxh7 {[%clk 0:00:05]}  Qxh7 {[%clk 0:01:06]} 19. Nxh7 {[%clk 0:00:06]}  Rh8 {[%clk 0:01:07]} 20. Ng5 {[%clk 0:00:07]}  Bxh2+ {[%clk 0:01:07]} 21. Kh1 {[%clk 0:00:07]}  Rh5 {[%clk 0:00:56]} 22. Nh3 {[%clk 0:00:07]}  Bf4 {[%clk 0:00:57]} 23. Rd1 {[%clk 0:00:05]}  Bd6 {[%clk 0:00:42]} 24. Bd2 {[%clk 0:00:03]}  Re2 {[%clk 0:00:42]} 25. Kg1 {[%clk 0:00:02]}  c6 {[%clk 0:00:41]} 26. Kf1 {[%clk 0:00:03]}  Re6 {[%clk 0:00:40]} 27. Re1 {[%clk 0:00:03]}  Rf6 {[%clk 0:00:37]} 28. Re8+ {[%clk 0:00:04]}  Kc7 {[%clk 0:00:38]} 29. Rae1 {[%clk 0:00:04]}  Bc5 {[%clk 0:00:38]} 30. R1e2 {[%clk 0:00:05]}  Rhf5 {[%clk 0:00:31]} 31. R8e6 {[%clk 0:00:05]}  Rf7 {[%clk 0:00:31]} 32. R6e5 {[%clk 0:00:05]}  R5f6 {[%clk 0:00:27]} 33. Re6 {[%clk 0:00:05]}  Rxe6 {[%clk 0:00:20]} 34. Rxe6 {[%clk 0:00:05]}  Kd7 {[%clk 0:00:21]} 35. Re2 {[%clk 0:00:06]}  b5 {[%clk 0:00:20]} 36. f3 {[%clk 0:00:06]}  Bb6 {[%clk 0:00:20]} 37. Ng5 {[%clk 0:00:07]}  Rf5 {[%clk 0:00:18]} 38. g4 {[%clk 0:00:06]}  Rf8 {[%clk 0:00:18]} 39. Kg2 {[%clk 0:00:06]}  a5 {[%clk 0:00:18]} 40. Ne4 {[%clk 0:00:07]}  Nf4+ {[%clk 0:00:17]} 41. Bxf4 {[%clk 0:00:07]}  Rxf4 {[%clk 0:00:18]} 42. Rd2+ {[%clk 0:00:07]}  Kc7 {[%clk 0:00:18]} 43. Ng3 {[%clk 0:00:07]}  Rf7 {[%clk 0:00:17]} 44. Re2 {[%clk 0:00:06]}  a4 {[%clk 0:00:17]} 45. Re6 {[%clk 0:00:06]}  Bd4 {[%clk 0:00:16]} 46. b3 {[%clk 0:00:06]}  a3 {[%clk 0:00:16]} 47. Nf5 {[%clk 0:00:06]}  Bf6 {[%clk 0:00:16]} 48. f4 {[%clk 0:00:04]}  Rd7 {[%clk 0:00:16]} 49. Kf3 {[%clk 0:00:04]}  Rd2 {[%clk 0:00:16]} 50. Re2 {[%clk 0:00:05]}  Rd1 {[%clk 0:00:16]} 51. g5 {[%clk 0:00:05]}  Bb2 {[%clk 0:00:16]} 52. Re7+ {[%clk 0:00:02]}  Kb6 {[%clk 0:00:15]} 53. Nxg7 {[%clk 0:00:02]}  Ra1 {[%clk 0:00:16]} 54. Ne6 {[%clk 0:00:02]}  Rxa2 {[%clk 0:00:16]} 55. g6 {[%clk 0:00:02]}  Ra1 {[%clk 0:00:17]} 56. Re8 {[%clk 0:00:02]}  Kb7 {[%clk 0:00:15]} 57. Ra8 {[%clk 0:00:03]}  Kxa8 {[%clk 0:00:16]} 0-1


[Site "https://www.chess.com"]

[Event "Titled Tuesday Blitz August 09 Early 2022"]
[White "Zenin, Dmitry"]
[Black "Bolourchifard, Farzad"]
[WhiteFideId "4127897"]
[BlackFideId "12510084"]
[WhiteElo "2215"]
[BlackElo "2317"]
[Result "0-1"]
[Round "09"]
[TimeControl "180+1"]
[Date "2022.08.09"]
[WhiteClock "0:00:03"]
[BlackClock "0:00:19"]

1. c4 {[%clk 0:03:00]}  e5 {[%clk 0:03:00]} 2. Nc3 {[%clk 0:03:00]}  Nc6 {[%clk 0:03:00]} 3. g3 {[%clk 0:03:00]}  g6 {[%clk 0:03:00]} 4. Bg2 {[%clk 0:02:59]}  Bg7 {[%clk 0:03:01]} 5. e4 {[%clk 0:02:59]}  d6 {[%clk 0:03:02]} 6. Nge2 {[%clk 0:02:59]}  Nge7 {[%clk 0:03:03]} 7. d3 {[%clk 0:02:59]}  Be6 {[%clk 0:03:03]} 8. h3 {[%clk 0:02:57]}  Qd7 {[%clk 0:03:03]} 9. Nd5 {[%clk 0:02:56]}  Nd8 {[%clk 0:03:02]} 10. Bg5 {[%clk 0:02:54]}  Ng8 {[%clk 0:02:55]} 11. Qd2 {[%clk 0:02:41]}  c6 {[%clk 0:02:55]} 12. Ndc3 {[%clk 0:02:40]}  f6 {[%clk 0:02:42]} 13. Be3 {[%clk 0:02:39]}  Ne7 {[%clk 0:02:41]} 14. h4 {[%clk 0:02:29]}  Nf7 {[%clk 0:02:35]} 15. h5 {[%clk 0:02:19]}  Bg4 {[%clk 0:02:29]} 16. f3 {[%clk 0:02:17]}  Be6 {[%clk 0:02:28]} 17. b3 {[%clk 0:02:13]}  g5 {[%clk 0:02:13]} 18. d4 {[%clk 0:02:03]}  Qc7 {[%clk 0:02:14]} 19. Bh3 {[%clk 0:01:45]}  Bxh3 {[%clk 0:02:13]} 20. Rxh3 {[%clk 0:01:44]}  h6 {[%clk 0:02:11]} 21. g4 {[%clk 0:01:41]}  O-O {[%clk 0:02:07]} 22. Rd1 {[%clk 0:01:21]}  a6 {[%clk 0:01:59]} 23. c5 {[%clk 0:01:16]}  dxc5 {[%clk 0:01:54]} 24. dxc5 {[%clk 0:01:15]}  Rfd8 {[%clk 0:01:42]} 25. Qc2 {[%clk 0:01:13]}  Rxd1+ {[%clk 0:01:42]} 26. Nxd1 {[%clk 0:01:11]}  Nd8 {[%clk 0:01:39]} 27. Qc4+ {[%clk 0:01:09]}  Kf8 {[%clk 0:01:40]} 28. Kf2 {[%clk 0:01:06]}  Qd7 {[%clk 0:01:36]} 29. Rh1 {[%clk 0:01:05]}  Ne6 {[%clk 0:01:32]} 30. Ndc3 {[%clk 0:01:02]}  Rd8 {[%clk 0:01:29]} 31. Rd1 {[%clk 0:00:59]}  Qc8 {[%clk 0:01:29]} 32. Rd6 {[%clk 0:00:58]}  Kf7 {[%clk 0:01:08]} 33. Na4 {[%clk 0:00:54]}  b5 {[%clk 0:01:02]} 34. Qxe6+ {[%clk 0:00:25]}  Qxe6 {[%clk 0:00:59]} 35. Rxe6 {[%clk 0:00:25]}  Kxe6 {[%clk 0:00:58]} 36. Nb6 {[%clk 0:00:22]}  Nc8 {[%clk 0:00:54]} 37. Nc3 {[%clk 0:00:15]}  Bf8 {[%clk 0:00:54]} 38. Ke2 {[%clk 0:00:13]}  Nxb6 {[%clk 0:00:43]} 39. cxb6 {[%clk 0:00:13]}  Kd7 {[%clk 0:00:44]} 40. a4 {[%clk 0:00:12]}  Bb4 {[%clk 0:00:43]} 41. Na2 {[%clk 0:00:12]}  c5 {[%clk 0:00:30]} 42. axb5 {[%clk 0:00:10]}  axb5 {[%clk 0:00:30]} 43. Nxb4 {[%clk 0:00:10]}  cxb4 {[%clk 0:00:30]} 44. Bc5 {[%clk 0:00:06]}  Rb8 {[%clk 0:00:20]} 45. Be3 {[%clk 0:00:05]}  Kc6 {[%clk 0:00:20]} 46. Kd3 {[%clk 0:00:05]}  Ra8 {[%clk 0:00:19]} 47. Ke2 {[%clk 0:00:03]}  Ra3 {[%clk 0:00:19]} 0-1


[Site "https://www.chess.com"]